fUSD/lending_fUSD_20260127
["ID","MTS","AMOUNT","RATE_DAILY","PERIOD"]
[403689033,1769482249140,-334.588581,0.00018,2]
[403689034,1769482249149,-334.588581,0.00018,2]
[403689035,1769482249160,-334.588581,0.00018,2]
[403689036,1769482249168,-334.588581,0.00018,2]
[403689037,1769482249178,-334.588581,0.00018,2]
[403689038,1769482249189,-334.588581,0.00018,2]
[403689039,1769482249199,-334.588581,0.00018,2]
[403689040,1769482249211,-285.5,0.00018008,2]
[403689041,1769482249220,-754.01787946,0.00018016,2]
[403689042,1769482249229,-2000.0,0.00018016,2]
[403689043,1769482249240,-1077.68136073,0.00018016,2]
[403689044,1769482249253,-290.0,0.00018017,2]
[403689045,1769482249265,-446.27592211,0.00018028,2]
[403689046,1769482249274,-290.0,0.00018051,2]
[403689047,1769482249283,-166.66,0.00018055,2]
[403689048,1769482249296,-587.0,0.00018058,2]
[403689049,1769482249306,-290.0,0.00018061,2]
[403689050,1769482249315,-152.0,0.00018075,5]
[403689051,1769482249326,-1000.0,0.00018082,2]
[403689052,1769482249336,-290.0,0.00018088,2]
[403689053,1769482249346,-1085.0,0.0001811,2]
[403689054,1769482249355,-200.0,0.0001813,2]
[403689055,1769482249364,-868.08,0.00018135,2]
[403689056,1769482249374,-290.0,0.00018145,2]
[403689057,1769482249384,-290.0,0.00018147,2]
[403689058,1769482249396,-638.74202367,0.00018149,13]
[403689059,1769482249405,-290.0,0.00018155,2]
[403689060,1769482249415,-290.0,0.00018185,2]
[403689061,1769482249424,-1085.0,0.00018214,2]
[403689062,1769482249434,-334.5472959,0.00018234,2]
[403689063,1769482249444,-2351.0,0.00018241,2]
[403689064,1769482249453,-1970.0,0.00018246,2]
[403689065,1769482249462,-1000.0,0.00018259,2]
[403689066,1769482249472,-1085.0,0.00018274,2]
[403689067,1769482249483,-290.0,0.00018279,2]
[403689068,1769482249492,-290.0,0.00018283,2]
[403689069,1769482249503,-212.21,0.0001829,2]
[403689070,1769482249511,-569.89,0.00018306,2]
[403689071,1769482249521,-160.38,0.00018353,2]
[403689072,1769482249531,-3533.06,0.00018356,2]
[403689073,1769482249540,-1000.0,0.00018356,2]
[403689074,1769482249550,-155.0,0.00018365,2]
[403689075,1769482249559,-1000.0,0.00018388,2]
[403689076,1769482249569,-1600.0,0.00018388,2]
[403689077,1769482249579,-200.0,0.00018388,2]
[403689078,1769482249589,-213.0,0.00018388,2]
[403689079,1769482249599,-150.16,0.00018388,2]
[403689080,1769482249608,-171.115,0.00018388,2]
[403689081,1769482249617,-210.554,0.00018388,2]
[403689082,1769482249627,-150.047,0.00018388,2]
[403689083,1769482249637,-250.0,0.00018388,2]
[403689084,1769482249647,-150.139,0.00018388,2]
[403689085,1769482249657,-191.447,0.00018388,2]
[403689086,1769482249666,-164.231,0.00018388,2]
[403689087,1769482249676,-250.0,0.00018388,2]
[403689088,1769482249686,-212.542,0.00018388,2]
[403689089,1769482249696,-230.677,0.00018388,2]
[403689090,1769482249708,-170.0,0.00018388,2]
[403689091,1769482249718,-868.08,0.00018409,2]
[403689092,1769482249727,-500.0,0.00018411,2]
[403689093,1769482249737,-152.0,0.00018427,6]
[403689094,1769482249746,-1000.0,0.000185,2]
[403689095,1769482249755,-225.18697532,0.00018509,2]
[403689096,1769482249765,-194.72792766,0.00018509,2]
[403689097,1769482249775,-918.64355495,0.00018509,2]
[403689098,1769482249785,-151.0,0.00018509,2]
[403689099,1769482249796,-837.0,0.00018531,2]
[403689100,1769482249806,-1500.0,0.00018534,7]
[403689101,1769482249819,-1085.0,0.00018537,2]
[403689102,1769482249828,-158.5,0.00018558,2]
[403689103,1769482249838,-503.21050409,0.00018564,2]
[403689104,1769482249848,-1085.0,0.00018593,2]
[403689105,1769482249858,-1000.0,0.0001863,2]
[403689106,1769482249867,-1085.0,0.00018674,2]
[403689107,1769482249876,-868.08,0.00018683,2]
[403689108,1769482249887,-150.0,0.00018693,2]
[403689109,1769482249897,-158.5,0.00018729,2]
[403689110,1769482249907,-166.66,0.00018771,2]
[403689111,1769482249917,-152.0,0.0001878,7]
[403689112,1769482249928,-291.21084641,0.00018796,2]
[403689113,1769482249937,-1138.0,0.00018808,2]
[403689114,1769482249947,-3021.71,0.00018831,2]
[403689115,1769482249958,-998.93592748,0.00018888,2]
[403689116,1769482249967,-167.95681876,0.000189,2]
[403689117,1769482249977,-1000.0,0.00018904,2]
[403689118,1769482249987,-285.5,0.00018956,2]
[403689119,1769482249997,-868.08,0.00018957,2]
[403689120,1769482250006,-5168.41525615,0.00019,2]
[403689121,1769482250018,-300.0,0.00019,2]
[403689122,1769482250028,-358.43293349,0.0001901,7]
[403689123,1769482250038,-233.51889341,0.00019057,2]
[403689124,1769482250048,-201.93286099,0.00019057,2]
[403689125,1769482250058,-952.63336648,0.00019057,2]
[403689126,1769482250068,-151.0,0.00019057,2]
[403689127,1769482250078,-212.21,0.00019066,2]
[403689128,1769482250087,-200.15546791,0.00019082,2]
[403689129,1769482250097,-2100.0,0.00019082,7]
[403689130,1769482250107,-152.0,0.00019132,8]
[403689131,1769482250118,-160.38,0.00019134,2]
[403689132,1769482250128,-300.0,0.00019177,2]
[403689133,1769482250138,-300.0,0.00019177,2]
[403689134,1769482250148,-300.0,0.00019177,2]
[403689135,1769482250157,-300.0,0.00019177,2]
[403689136,1769482250168,-300.0,0.00019177,2]
[403689137,1769482250178,-671.15158679,0.00019177,2]
[403689138,1769482250187,-300.0,0.00019177,2]
[403689139,1769482250199,-307.77367355,0.00019177,2]
[403689140,1769482250211,-300.0,0.00019177,2]
[403689141,1769482250225,-300.0,0.00019177,2]
[403689142,1769482250235,-300.0,0.00019177,2]
[403689143,1769482250251,-25000.0,0.00019178,3]
[403689144,1769482250264,-24518.18605344,0.00019178,3]
[403689145,1769482250274,-500.0,0.00019178,2]
[403689146,1769482250285,-500.0,0.00019178,2]
[403689147,1769482250295,-500.0,0.00019178,2]
[403689148,1769482250304,-273.96181267,0.00019178,2]
[403689149,1769482250314,-500.0,0.00019178,2]
[403689150,1769482250324,-500.0,0.00019178,2]
[403689151,1769482250333,-500.0,0.00019178,2]
[403689152,1769482250343,-500.0,0.00019178,2]
[403689153,1769482250352,-500.0,0.00019178,2]
[403689154,1769482250362,-500.0,0.00019178,2]
[403689155,1769482250371,-500.0,0.00019178,2]
[403689156,1769482250380,-500.0,0.00019178,2]
[403689157,1769482250390,-500.0,0.00019178,2]
[403689158,1769482250399,-500.0,0.00019178,2]
[403689159,1769482250408,-500.0,0.00019178,2]
[403689160,1769482250418,-500.0,0.00019178,2]
[403689161,1769482250428,-500.0,0.00019178,2]
[403689162,1769482250437,-500.0,0.00019178,2]
[403689163,1769482250447,-500.0,0.00019178,2]
[403689164,1769482250456,-500.0,0.00019178,2]
[403689165,1769482250466,-500.0,0.00019178,2]
[403689166,1769482250475,-366.77326887,0.00019178,2]
[403689167,1769482250484,-150.0,0.00019178,2]
[403689168,1769482250494,-3000.0,0.00019178,2]
[403689169,1769482250503,-3000.0,0.00019178,7]
[403689170,1769482250512,-3010.5356105,0.00019178,12]
[403689171,1769482250521,-151.0,0.00019178,2]
[403689172,1769482250531,-151.0,0.00019178,2]
[403689173,1769482250540,-151.0,0.00019178,2]
[403689174,1769482250549,-151.0,0.00019178,2]
[403689175,1769482250559,-20128.29,0.00019178,2]
[403689176,1769482250568,-151.0,0.00019178,2]
[403689177,1769482250578,-168.621983,0.00019178,2]
[403689178,1769482250587,-151.0,0.00019178,2]
[403689179,1769482250596,-151.0,0.00019178,2]
[403689180,1769482250606,-151.0,0.00019178,2]
[403689181,1769482250615,-151.0,0.00019178,2]
[403689182,1769482250624,-151.0,0.00019178,2]
[403689183,1769482250634,-151.0,0.00019178,2]
[403689184,1769482250643,-151.0,0.00019178,2]
[403689185,1769482250653,-151.0,0.00019178,2]
[403689186,1769482250662,-5128.345682,0.00019178,2]
[403689187,1769482250671,-5128.345682,0.00019178,2]
[403689188,1769482250681,-5128.345682,0.00019178,2]
[403689189,1769482250691,-5128.345682,0.00019178,2]
[403689190,1769482250700,-5128.345682,0.00019178,2]
[403689191,1769482250709,-5128.345682,0.00019178,2]
[403689192,1769482250718,-5128.345682,0.00019178,2]
[403689193,1769482250727,-5128.345682,0.00019178,2]
[403689194,1769482250736,-1000.0,0.00019178,2]
[403689195,1769482250746,-212.21,0.00019204,2]
[403689196,1769482250755,-150.0,0.00019233,2]
[403689197,1769482250765,-1085.0,0.00019262,2]
[403689198,1769482250774,-160.38,0.00019268,2]
[403689199,1769482250784,-150.0,0.00019288,2]
[403689200,1769482250793,-1085.0,0.00019322,2]
[403689201,1769482250802,-205.68058605,0.00019342,2]
[403689202,1769482250812,-238.70351654,0.00019352,2]
[403689203,1769482250823,-273.46272325,0.00019353,5]
[403689204,1769482250832,-1000.0,0.00019356,7]
[403689205,1769482250842,-166.68,0.0001937,2]
[403689206,1769482250853,-1085.0,0.00019402,2]
[403689207,1769482250863,-1000.0,0.00019452,2]
[403689208,1769482250872,-1085.0,0.00019459,2]
[403689209,1769482250882,-613.06,0.00019481,2]
[403689210,1769482250891,-613.06,0.00019481,2]
[403689211,1769482250900,-613.06,0.00019481,2]
[403689212,1769482251108,-628.27,0.00019481,2]
[403689213,1769482251119,-1000.0,0.00019481,2]
[403689214,1769482251131,-152.0,0.00019485,9]
[403689215,1769482251141,-166.66,0.00019486,2]
[403689216,1769482251151,-300.0,0.00019499,2]
[403689217,1769482251162,-300.0,0.00019499,2]
[403689218,1769482251172,-41633.38814685,0.000195,2]
[403689219,1769482251183,-8110.41270033,0.00019503,2]
[403689220,1769482251192,-1386.25399157,0.00019534,2]
[403689221,1769482251201,-346.92554585,0.00019603,2]
[403689222,1769482251217,-721.12765535,0.00019604,2]
[403689223,1769482251227,-599.60298507,0.00019604,2]
[403689224,1769482251236,-3543.0,0.00019604,2]
[403689225,1769482251245,-151.0,0.00019604,2]
[403689226,1769482251258,-500.0,0.00019604,2]
[403689227,1769482251269,-500.0,0.00019604,2]
[403689228,1769482251279,-500.0,0.00019604,2]
[403689229,1769482251294,-500.0,0.00019604,2]
[403689230,1769482251303,-500.0,0.00019604,2]
[403689231,1769482251313,-500.0,0.00019604,2]
[403689232,1769482251323,-500.0,0.00019604,2]
[403689233,1769482251332,-500.0,0.00019604,2]
[403689234,1769482251342,-500.0,0.00019604,2]
[403689235,1769482251351,-500.0,0.00019604,2]
[403689236,1769482251360,-500.0,0.00019604,2]
[403689237,1769482251370,-500.0,0.00019604,2]
[403689238,1769482251380,-500.0,0.00019604,2]
[403689239,1769482251389,-500.0,0.00019604,2]
[403689240,1769482251399,-500.0,0.00019604,2]
[403689241,1769482251408,-500.0,0.00019604,2]
[403689242,1769482251417,-500.0,0.00019604,2]
[403689243,1769482251426,-500.0,0.00019604,2]
[403689244,1769482251437,-500.0,0.00019604,2]
[403689245,1769482251446,-500.0,0.00019604,2]
[403689246,1769482251455,-500.0,0.00019604,2]
[403689247,1769482251464,-500.0,0.00019604,2]
[403689248,1769482251474,-500.0,0.00019604,2]
[403689249,1769482251483,-500.0,0.00019604,2]
[403689250,1769482251493,-500.0,0.00019604,2]
[403689251,1769482251502,-515.0,0.00019604,2]
[403689252,1769482251511,-511.0,0.00019604,2]
[403689253,1769482251520,-500.0,0.00019604,2]
[403689254,1769482251529,-500.0,0.00019604,2]
[403689255,1769482251539,-500.0,0.00019604,2]
[403689256,1769482251548,-500.0,0.00019604,2]
[403689257,1769482251557,-500.0,0.00019604,2]
[403689258,1769482251566,-500.0,0.00019604,2]
[403689259,1769482251575,-500.0,0.00019604,2]
[403689260,1769482251584,-500.0,0.00019604,2]
[403689261,1769482251593,-500.0,0.00019604,2]
[403689262,1769482251602,-500.0,0.00019604,2]
[403689263,1769482251611,-500.0,0.00019604,2]
[403689264,1769482251620,-500.0,0.00019604,2]
[403689265,1769482251629,-500.0,0.00019604,2]
[403689266,1769482251638,-500.0,0.00019604,2]
[403689267,1769482251648,-500.0,0.00019604,2]
[403689268,1769482251659,-500.0,0.00019604,2]
[403689269,1769482251669,-613.0,0.00019604,2]
[403689270,1769482251679,-500.0,0.00019604,2]
[403689271,1769482251688,-500.0,0.00019604,2]
[403689272,1769482251698,-500.0,0.00019604,2]
[403689273,1769482251708,-500.0,0.00019604,2]
[403689274,1769482251718,-500.0,0.00019604,2]
[403689275,1769482251727,-500.0,0.00019604,2]
[403689276,1769482251737,-500.0,0.00019604,2]
[403689277,1769482251746,-236.43978754,0.00019605,2]
[403689278,1769482251755,-209.40437684,0.00019605,2]
[403689279,1769482251765,-987.88080104,0.00019605,2]
[403689280,1769482251776,-264.32405138,0.00019605,2]
[403689281,1769482251786,-1386.25399157,0.00019616,2]
[403689282,1769482251795,-300.0,0.00019629,2]
[403689283,1769482251805,-300.0,0.00019629,2]
[403689284,1769482251815,-1500.0,0.0001963,7]
[403689285,1769482251825,-500.0,0.0001963,2]
[403689286,1769482251834,-500.0,0.0001963,2]
[403689287,1769482251844,-500.0,0.0001963,2]
[403689288,1769482251854,-500.0,0.0001963,2]
[403689289,1769482251863,-500.0,0.0001963,2]
[403689290,1769482251873,-500.0,0.0001963,2]
[403689291,1769482251882,-500.0,0.0001963,2]
[403689292,1769482251892,-500.0,0.0001963,2]
[403689293,1769482251902,-500.0,0.0001963,2]
[403689294,1769482251911,-500.0,0.0001963,2]
[403689295,1769482251920,-500.0,0.0001963,2]
[403689296,1769482251930,-500.0,0.0001963,2]
[403689297,1769482251939,-527.0,0.0001963,2]
[403689298,1769482251949,-1386.25399157,0.00019671,2]
[403689299,1769482251960,-3021.71,0.00019687,2]
[403689300,1769482251971,-152.43835252,0.00019693,2]
[403689301,1769482251981,-2000.0,0.000197,2]
[403689302,1769482251991,-1000.0,0.00019726,2]
[403689303,1769482252001,-558.94,0.00019726,2]
[403689304,1769482252010,-300.0,0.00019726,2]
[403689305,1769482252020,-1386.25399157,0.00019753,2]
[403689306,1769482252029,-823.0,0.00019762,2]
[403689307,1769482252040,-560.45,0.00019771,2]
[403689308,1769482252051,-1386.25399157,0.00019836,2]
[403689309,1769482252061,-152.0,0.00019837,10]
[403689310,1769482252071,-500.0,0.00019849,2]
[403689311,1769482252080,-4922.64962179,0.000199,3]
[403689312,1769482252091,-285.5,0.00019904,2]
[403689313,1769482252101,-1386.25399157,0.00019918,2]
[403689314,1769482252110,-725.35064776,0.0001994,2]
[403689315,1769482252120,-500.0,0.00019949,2]
[403689316,1769482252130,-300.0,0.00019949,2]
[403689317,1769482252139,-359828.31604186,0.0001995,15]
[403689318,1769482252150,-151.0,0.0001995,2]
[403689319,1769482252161,-151.0,0.0001995,2]
[403689320,1769482252171,-151.0,0.0001995,2]
[403689321,1769482252182,-295.727108,0.0001995,2]
[403689322,1769482252191,-295.727108,0.0001995,2]
[403689323,1769482252201,-295.727108,0.0001995,2]
[403689324,1769482252215,-295.727108,0.0001995,2]
[403689325,1769482252224,-300.0,0.00019999,2]
[403689326,1769482252234,-500.0,0.00019999,2]
[403689327,1769482252244,-351.56,0.00019999,2]
[403689328,1769482252256,-151.0,0.00019999,2]
[403689329,1769482252267,-151.0,0.00019999,2]
[403689330,1769482252278,-151.0,0.00019999,2]
[403689331,1769482252289,-222.0147,0.00019999,2]
[403689332,1769482252299,-156.647313,0.00019999,2]
[403689333,1769482252308,-156.647313,0.00019999,2]
[403689334,1769482252318,-156.647313,0.00019999,2]
[403689335,1769482252327,-156.647313,0.00019999,2]
[403689336,1769482252337,-354.727402,0.00019999,2]
[403689337,1769482252346,-354.727402,0.00019999,2]
[403689338,1769482252355,-354.727402,0.00019999,2]
[403689339,1769482252364,-354.727402,0.00019999,2]
[403689340,1769482252375,-334.588581,0.00019999,2]
[403689341,1769482252384,-334.588581,0.00019999,2]
[403689342,1769482252393,-334.588581,0.00019999,2]
[403689343,1769482252402,-334.588581,0.00019999,2]
[403689344,1769482252411,-1533.12767899,0.0002,2]
[403689345,1769482252422,-25592.17602633,0.0002,2]
[403689346,1769482252432,-367576.509717,0.0002,4]
[403689347,1769482252441,-8300.0,0.0002,4]
[403689348,1769482252451,-3950.0,0.0002,2]
[403689349,1769482252460,-1294.37333693,0.0002,2]
[403689350,1769482252470,-1044.83029193,0.0002,2]
[403689351,1769482252479,-2863.2650418,0.0002,2]
[403689352,1769482252488,-12922.38180059,0.0002,2]
[403689353,1769482252497,-152.0,0.0002,2]
[403689354,1769482252506,-2936.98164271,0.0002,7]
[403689355,1769482252514,-529.15366795,0.0002,7]
[403689356,1769482252524,-2171.48470735,0.0002,7]
[403689357,1769482252533,-200.0,0.0002,2]
[403689358,1769482252542,-2464.68,0.0002,2]
[403689359,1769482252552,-500.0,0.0002,2]
[403689360,1769482252561,-150.0,0.0002,2]
[403689361,1769482252570,-1386.25399157,0.0002,2]
[403689362,1769482252578,-151.0,0.0002,2]
[403689363,1769482252586,-151.0,0.0002,2]
[403689364,1769482252593,-500.0,0.0002,5]
[403689365,1769482252601,-502.39531283,0.0002,2]
[403689366,1769482252610,-151.0,0.0002,2]
[403689367,1769482252619,-779.09429,0.0002,2]
[403689368,1769482252627,-151.0,0.0002,2]
[403689369,1769482252636,-151.0,0.0002,2]
[403689370,1769482252645,-151.0,0.0002,2]
[403689371,1769482252654,-151.0,0.0002,2]
[403689372,1769482252663,-151.0,0.0002,2]
[403689373,1769482252673,-151.0,0.0002,2]
[403689374,1769482252683,-151.0,0.0002,2]
[403689375,1769482252694,-151.0,0.0002,2]
[403689376,1769482252704,-151.000007,0.0002,2]
[403689377,1769482252713,-403.641762,0.0002,2]
[403689378,1769482252723,-403.641762,0.0002,2]
[403689379,1769482252732,-403.641762,0.0002,2]
[403689380,1769482252742,-403.641762,0.0002,2]
[403689381,1769482252754,-5128.345682,0.0002,2]
[403689382,1769482252764,-5128.345682,0.0002,2]
[403689383,1769482252773,-5128.345682,0.0002,2]
[403689384,1769482252782,-5128.345682,0.0002,2]
[403689385,1769482252791,-202.688092,0.0002,2]
[403689386,1769482252800,-187.88,0.0002,2]
[403689387,1769482252808,-151.0,0.0002,2]
[403689388,1769482252817,-151.0,0.0002,2]
[403689389,1769482252826,-151.0,0.0002,2]
[403689390,1769482252835,-200.0,0.0002,2]
[403689391,1769482252844,-151.0,0.0002,2]
[403689392,1769482252853,-589.81434,0.0002,2]
[403689393,1769482252865,-589.81434,0.0002,2]
[403689394,1769482252879,-589.81434,0.0002,2]
[403689395,1769482252893,-589.81434,0.0002,2]
[403689396,1769482252908,-1000.0,0.0002,7]
[403689397,1769482252922,-1000.0,0.0002,2]
[403689398,1769482252936,-500.0,0.00020001,2]
[403689399,1769482252950,-500.0,0.00020002,2]
[403689400,1769482252963,-499.9999,0.00020003,2]
[403689401,1769482252976,-155.0,0.00020034,2]
[403689402,1769482252990,-560.45,0.00020045,2]
[403689403,1769482253005,-3292.0,0.00020064,2]
[403689404,1769482253019,-1386.25399157,0.00020082,2]
[403689405,1769482253035,-217.15233878,0.00020153,2]
[403689406,1769482253050,-1024.43239068,0.00020153,2]
[403689407,1769482253064,-1386.25399157,0.00020164,2]
[403689408,1769482253079,-2100.0,0.00020178,7]
[403689409,1769482253095,-152.0,0.0002019,11]
[403689410,1769482253109,-166.66,0.00020202,2]
[403689411,1769482253122,-1386.25399157,0.00020247,2]
[403689412,1769482253133,-1000.0,0.00020274,2]
[403689413,1769482253148,-1386.25399157,0.00020301,2]
[403689414,1769482253164,-560.45,0.00020319,2]
[403689415,1769482253175,-1386.25399157,0.00020384,2]
[403689416,1769482253188,-500.0,0.00020391,2]
[403689417,1769482253204,-1000.0,0.00020431,2]
[403689418,1769482253220,-1600.0,0.00020431,2]
[403689419,1769482253233,-697.33,0.00020439,2]
[403689420,1769482253246,-613.06,0.00020439,2]
[403689421,1769482253262,-613.06,0.00020439,2]
[403689422,1769482253277,-613.06,0.00020439,2]
[403689423,1769482253291,-1000.0,0.00020452,7]
[403689424,1769482253304,-152.0,0.00020542,12]
[403689425,1769482253318,-3021.71,0.00020543,2]
[403689426,1769482253332,-154.23,0.00020548,2]
[403689427,1769482253345,-1000.0,0.00020548,2]
[403689428,1769482253359,-225.18697532,0.00020701,2]
[403689429,1769482253372,-1062.33638913,0.00020701,2]
[403689430,1769482253385,-1500.0,0.00020726,7]
[403689431,1769482253398,-200.0,0.00020753,2]
[403689432,1769482253412,-1000.0,0.00020822,2]
[403689433,1769482253425,-285.5,0.00020852,2]
[403689434,1769482253439,-152.0,0.00020895,13]
[403689435,1769482253452,-5323.574,0.000209,2]
[403689436,1769482253465,-200.0,0.00020954,2]
[403689437,1769482253478,-359.76179104,0.00020972,2]
[403689438,1769482253491,-300.0,0.00020995,2]
[403689439,1769482253505,-615.0,0.00020996,2]
[403689440,1769482253518,-1333.0,0.00020996,2]
[403689441,1769482253531,-3477.0,0.00020996,2]
[403689442,1769482253551,-1408.0,0.00020996,2]
[403689443,1769482253564,-184.0,0.00020996,2]
[403689444,1769482253577,-1269.0,0.00020996,2]
[403689445,1769482253589,-1204.0,0.00020996,2]
[403689446,1769482253603,-567.0,0.00020996,2]
[403689447,1769482253616,-4831.0,0.00020996,2]
[403689448,1769482253629,-6570.0,0.00020996,2]
[403689449,1769482253642,-1000.0,0.00020998,2]
[403689450,1769482253654,-160.0,0.00021,7]
[403689451,1769482253667,-500.0,0.00021,2]
[403689452,1769482253680,-500.0,0.00021,2]
[403689453,1769482253694,-500.0,0.00021,2]
[403689454,1769482253709,-150.0,0.00021,2]
[403689455,1769482253722,-207.74,0.00021,2]
[403689456,1769482253736,-725.32,0.00021,7]
[403689457,1769482253750,-350.0,0.00021,2]
[403689458,1769482253764,-509.67,0.00021,2]
[403689459,1769482253778,-152.0,0.00021,2]
[403689460,1769482253791,-1000.0,0.00021096,2]
[403689461,1769482253805,-200.0,0.00021101,2]
[403689462,1769482253818,-551.5,0.00021113,10]
[403689463,1769482253832,-200.0,0.00021183,2]
[403689464,1769482253845,-200.0,0.00021241,2]
[403689465,1769482253859,-152.0,0.00021247,14]
[403689466,1769482253872,-233.51889341,0.00021249,2]
[403689467,1769482253885,-1101.64283553,0.00021249,2]
[403689468,1769482253898,-2100.0,0.00021274,7]
[403689469,1769482253912,-200.0,0.00021313,2]
[403689470,1769482253926,-1000.0,0.0002137,2]
[403689471,1769482253939,-150.0,0.00021388,2]
[403689472,1769482253952,-150.0,0.00021388,2]
[403689473,1769482253965,-150.0,0.00021388,2]
[403689474,1769482253979,-613.06,0.00021424,2]
[403689475,1769482253991,-1226.12,0.00021424,2]
[403689476,1769482254004,-13356.0,0.00021499,2]
[403689477,1769482254017,-1000.0,0.00021548,7]
[403689478,1769482254030,-152.0,0.000216,15]
[403689479,1769482254042,-1152.0,0.00021626,2]
[403689480,1769482254056,-1000.0,0.00021644,2]
[403689481,1769482254068,-200.0,0.00021662,2]
[403689482,1769482254082,-7533.23489696,0.00021721,2]
[403689483,1769482255342,-5822.76510304,0.00021721,2]
[403689484,1769482255352,-242.15909246,0.00021797,2]
[403689485,1769482255362,-1142.40362045,0.00021797,2]
[403689486,1769482255372,-285.5,0.00021799,2]
[403689487,1769482255382,-1293.3654764,0.000218,2]
[403689488,1769482255392,-2225.2722502,0.00021811,2]
[403689489,1769482255402,-1500.0,0.00021822,7]
[403689490,1769482255413,-159.43753018,0.00021851,2]
[403689491,1769482255422,-353.88,0.00021917,2]
[403689492,1769482255432,-353.88,0.00021917,2]
[403689493,1769482255441,-353.88,0.00021917,2]
[403689494,1769482255450,-353.88,0.00021917,2]
[403689495,1769482255459,-353.88,0.00021917,2]
[403689496,1769482255469,-353.88,0.00021917,2]
[403689497,1769482255479,-353.88,0.00021917,2]
[403689498,1769482255489,-353.88,0.00021917,2]
[403689499,1769482255498,-353.88,0.00021917,2]
[403689500,1769482255509,-353.88,0.00021917,2]
[403689501,1769482255518,-353.88,0.00021917,2]
[403689502,1769482255528,-353.88,0.00021917,2]
[403689503,1769482255536,-353.88,0.00021917,2]
[403689504,1769482255546,-353.88,0.00021917,2]
[403689505,1769482255555,-353.88,0.00021917,2]
[403689506,1769482255564,-353.88,0.00021917,2]
[403689507,1769482255573,-353.88,0.00021917,2]
[403689508,1769482255583,-353.88,0.00021917,2]
[403689509,1769482255592,-353.88,0.00021917,2]
[403689510,1769482255601,-353.88,0.00021917,2]
[403689511,1769482255610,-353.88,0.00021917,2]
[403689512,1769482255619,-353.88,0.00021917,2]
[403689513,1769482255628,-353.88,0.00021917,2]
[403689514,1769482255637,-354.06847109,0.00021917,2]
[403689515,1769482255646,-5000.0,0.00021918,2]
[403689516,1769482255655,-707.421331,0.00021918,2]
[403689517,1769482255664,-707.421331,0.00021918,2]
[403689518,1769482255673,-707.421331,0.00021918,2]
[403689519,1769482255683,-707.421331,0.00021918,2]
[403689520,1769482255692,-707.421331,0.00021918,2]
[403689521,1769482255701,-707.421331,0.00021918,2]
[403689522,1769482255711,-707.421331,0.00021918,2]
[403689523,1769482255720,-707.421331,0.00021918,2]
[403689524,1769482255729,-151.0,0.00021918,2]
[403689525,1769482255738,-274.939355,0.00021918,2]
[403689526,1769482255748,-151.0,0.00021918,2]
[403689527,1769482255758,-800.0,0.00021918,4]
[403689528,1769482255770,-800.0,0.00021918,4]
[403689529,1769482255779,-800.0,0.00021918,4]
[403689530,1769482255789,-800.0,0.00021918,4]
[403689531,1769482255799,-800.0,0.00021918,4]
[403689532,1769482255808,-800.0,0.00021918,4]